bitfinex/quotes_BTCUSD_20260310
["timestamp","ask_amount","ask_price","bid_price","bid_amount"]
[1773117244954,0.00022001,69895.0,69881.0,0.18295141]
[1773117245155,0.00022001,69895.0,69882.0,0.02349049]
[1773117245352,0.00022001,69895.0,69883.0,0.02493049]
[1773117245765,0.03022001,69895.0,69883.0,0.02493049]
[1773117245967,0.071755,69896.0,69895.0,0.00694236]
[1773117246167,0.071755,69896.0,69883.0,0.02493049]
[1773117246380,0.07175487,69896.0,69883.0,0.02493049]
[1773117246593,0.07175487,69896.0,69884.0,0.07154713]
[1773117246800,0.00022002,69896.0,69884.0,0.07154713]
[1773117247007,0.07153587,69895.0,69884.0,0.07154713]
[1773117247227,0.03,69894.0,69884.0,0.07154713]
[1773117249362,0.00022002,69896.0,69884.0,0.07154713]
[1773117250089,0.03,69898.0,69884.0,0.07174713]
[1773117250301,0.00022001,69895.0,69884.0,0.09391431]
[1773117253693,0.03,69906.0,69888.0,0.18295141]
[1773117254058,0.1015247,69906.0,69891.0,0.02216718]
[1773117254206,0.03,69902.0,69889.0,0.00144]
[1773117254547,0.03,69900.0,69889.0,0.00144]
[1773117255400,0.02357288,69904.0,69889.0,0.00144]
[1773117255401,0.03,69903.0,69889.0,0.00144]
[1773117255809,0.03,69903.0,69890.0,0.07154099]
[1773117256113,0.05357288,69903.0,69890.0,0.07154099]
[1773117258275,0.05357288,69903.0,69890.0,0.14801817]
[1773117258683,0.05379289,69903.0,69891.0,0.00144]
[1773117260087,0.03,69902.0,69892.0,0.02216718]
[1773117260287,0.07152359,69907.0,69893.0,0.07153792]
[1773117260700,0.02357288,69907.0,69893.0,0.07153792]
[1773117260900,0.02357288,69907.0,69894.0,0.02216718]
[1773117261222,0.03,69906.0,69894.0,0.02216718]
[1773117261626,0.03,69906.0,69893.0,0.07153792]
[1773117262229,0.05357288,69905.0,69893.0,0.07153792]
[1773117263919,0.03,69904.0,69893.0,0.07153792]
[1773117264089,0.03,69904.0,69894.0,0.00144]
[1773117266174,0.03,69904.0,69895.0,0.07153587]
[1773117269971,0.09891168,69919.0,69897.0,0.18295141]
[1773117270188,0.07150949,69921.0,69909.0,0.07593416]
[1773117270407,0.07162315,69921.0,69910.0,0.00144]
[1773117271066,0.03,69920.0,69910.0,0.00144]
[1773117272134,0.02357288,69913.0,69906.0,0.07296459]
[1773117272339,0.03,69908.0,69906.0,0.07152459]
[1773117272753,0.07151387,69917.0,69907.0,0.00144]
[1773117273162,0.09508675,69917.0,69907.0,0.00144]
[1773117273602,0.03,69912.0,69902.0,0.0715286]
[1773117273816,0.03,69908.0,69901.0,0.07152871]
[1773117274022,0.05357288,69906.0,69903.0,0.00144]
[1773117274438,0.05357288,69906.0,69898.0,0.11308842]
[1773117274439,0.02357288,69902.0,69898.0,0.11308842]
[1773117274670,0.03,69901.0,69898.0,0.11308842]
[1773117274855,0.03,69901.0,69899.0,0.07297173]
[1773117275466,0.03,69900.0,69896.0,0.11308842]
[1773117275596,0.03,69900.0,69899.0,0.00144]
[1773117276422,0.03,69900.0,69894.0,0.071536]
[1773117276423,0.03,69900.0,69897.0,0.07153358]
[1773117276654,0.07152491,69906.0,69898.0,0.00144]
[1773117276856,0.02357288,69905.0,69898.0,0.00144]
[1773117277090,0.02357288,69905.0,69899.0,0.00144]
[1773117277413,0.02357288,69905.0,69897.0,0.07153358]
[1773117277624,0.03,69904.0,69898.0,0.00144]
[1773117278080,0.03,69904.0,69899.0,0.00144]
[1773117278964,0.03,69904.0,69894.0,0.07153689]
[1773117279121,0.10152768,69903.0,69894.0,0.07153689]
[1773117279558,0.12555989,69903.0,69895.0,0.00144]
[1773117281164,0.12555989,69903.0,69895.0,0.0729752]
[1773117281573,0.10152768,69903.0,69895.0,0.0729752]
[1773117282238,0.10152768,69903.0,69895.0,0.18606362]
[1773117282843,0.10152768,69903.0,69895.0,0.11452842]
[1773117283060,0.18963241,69898.0,69885.0,0.16976635]
[1773117283240,0.07174769,69903.0,69886.0,0.00144]
[1773117283241,0.07647718,69900.0,69886.0,0.00144]
[1773117283451,0.18980804,69896.0,69884.0,0.0002]
[1773117283650,0.18980804,69888.0,69880.0,0.24142242]
[1773117283821,0.68973462,69900.0,69880.0,0.24142242]
[1773117283822,0.02403221,69887.0,69880.0,0.0715511]
[1773117284023,0.02403221,69887.0,69881.0,0.00144]
[1773117284961,0.03,69886.0,69881.0,0.07298923]
[1773117285435,0.07154012,69891.0,69881.0,0.07298923]
[1773117286112,0.02403221,69907.0,69882.0,0.19017515]
[1773117286313,0.07174795,69903.0,69889.0,0.07647718]
[1773117286454,0.07174795,69903.0,69891.0,0.02358404]
[1773117286656,0.02403221,69902.0,69890.0,0.00144]
[1773117287063,0.12556194,69901.0,69891.0,0.07153996]
[1773117289314,0.12556194,69901.0,69877.0,0.0002]
[1773117289315,0.03,69893.0,69877.0,0.0002]
[1773117289460,0.00144,69900.0,69877.0,0.0002]
[1773117289461,0.03,69887.0,69882.0,0.00144]
[1773117289669,0.03,69887.0,69883.0,0.00144]
[1773117290535,0.03,69885.0,69878.0,0.07175308]
[1773117290879,0.03,69885.0,69879.0,0.00144]
[1773117291088,0.03,69883.0,69882.0,0.0002]
[1773117291637,0.0231159,69884.0,69882.0,0.00164]
[1773117292127,0.0231159,69884.0,69882.0,0.0002]
[1773117292353,0.0231159,69884.0,69878.0,0.0002]
[1773117292476,0.0231159,69884.0,69880.0,0.00144]
[1773117292695,0.0231159,69884.0,69878.0,0.0002]
[1773117292909,0.0231159,69884.0,69880.0,0.00144]
[1773117293103,0.0231159,69884.0,69873.0,0.07184684]
[1773117293104,0.03,69884.0,69873.0,0.07184684]
[1773117293308,0.03,69880.0,69874.0,0.00144]
[1773117293708,0.03,69880.0,69873.0,0.00040207]
[1773117293944,0.0231159,69879.0,69870.0,0.0002]
[1773117294164,0.03,69874.0,69869.0,0.00144]
[1773117294360,0.03,69872.0,69869.0,0.00144]
[1773117294587,0.09467453,69873.0,69865.0,0.07156564]
[1773117294794,0.09467453,69873.0,69866.0,0.00144]
[1773117294995,0.09467453,69873.0,69865.0,0.07156564]
[1773117295563,0.09467453,69873.0,69865.0,0.07300564]
[1773117296402,0.09467453,69873.0,69863.0,0.0002]
[1773117296403,0.0231159,69871.0,69863.0,0.0002]
[1773117296597,0.03,69870.0,69863.0,0.00031368]
[1773117297339,0.03,69870.0,69863.0,0.071882]
[1773117297515,0.03,69872.0,69863.0,0.071882]
[1773117297887,0.07155863,69873.0,69863.0,0.071882]
[1773117299029,0.03,69878.0,69866.0,0.17999892]
[1773117299169,0.03,69878.0,69867.0,0.02391953]
[1773117299716,0.03,69878.0,69868.0,0.00144]
[1773117300552,0.03,69880.0,69869.0,0.02391953]
[1773117300942,0.03,69880.0,69870.0,0.07156147]
[1773117301110,0.03,69880.0,69870.0,0.095481]
[1773117301944,0.03,69879.0,69870.0,0.095481]
[1773117302188,0.03,69879.0,69870.0,0.07156147]
[1773117302399,0.03,69877.0,69868.0,0.00144]
[1773117302611,0.07154936,69882.0,69863.0,0.07188197]
[1773117302612,0.0531159,69873.0,69863.0,0.07188197]
[1773117302821,0.0531159,69873.0,69864.0,0.00144]
[1773117303029,0.03,69873.0,69865.0,0.07156659]
[1773117303242,0.03,69873.0,69865.0,0.07300659]
[1773117303678,0.03,69872.0,69865.0,0.07300659]
[1773117304304,0.07155673,69875.0,69865.0,0.07300659]
[1773117304521,0.07153587,69895.0,69869.0,0.18172679]
[1773117304700,0.0531159,69891.0,69872.0,0.02391953]
[1773117304979,0.0531159,69891.0,69875.0,0.02391953]
[1773117305177,0.12465646,69891.0,69878.0,0.02391953]
[1773117305395,0.10154056,69891.0,69878.0,0.02391953]
[1773117306883,0.10154056,69891.0,69879.0,0.02391953]
[1773117307112,0.10154056,69891.0,69882.0,0.20564632]
[1773117307290,0.10154056,69891.0,69883.0,0.02535953]
[1773117307789,0.10176057,69891.0,69883.0,0.02535953]
[1773117308156,0.03,69889.0,69883.0,0.00144]
[1773117308356,0.0531159,69889.0,69883.0,0.00144]
[1773117308932,0.0531159,69889.0,69880.0,0.0715502]
[1773117308933,0.03,69883.0,69880.0,0.00144]
[1773117309084,0.19758736,69885.0,69880.0,0.00144]
[1773117309085,0.03,69881.0,69880.0,0.00144]
[1773117309868,0.03,69881.0,69879.0,0.07299205]
[1773117310068,0.03,69886.0,69879.0,0.07299205]
[1773117310410,0.00022001,69891.0,69881.0,0.02520469]
[1773117310763,0.07176,69891.0,69881.0,0.02520469]
[1773117310964,0.07176,69891.0,69882.0,0.07154918]
[1773117311209,0.03,69890.0,69882.0,0.07154918]
[1773117312524,0.07176,69891.0,69878.0,0.07155323]
[1773117312525,0.02341248,69887.0,69878.0,0.07155323]
[1773117312728,0.03,69882.0,69879.0,0.00144]
[1773117313550,0.03,69882.0,69878.0,0.07155323]
[1773117313766,0.03,69881.0,69878.0,0.07299323]
[1773117314872,0.03,69880.0,69878.0,0.07299323]
[1773117315024,0.03,69880.0,69878.0,0.07155323]
[1773117315221,0.03,69880.0,69878.0,0.07299323]
[1773117315863,0.03,69879.0,69878.0,0.07299323]
[1773117316066,0.03,69879.0,69878.0,0.07155323]
[1773117316264,0.03,69879.0,69878.0,0.07299323]
[1773117316484,0.03,69879.0,69877.0,0.07155346]
[1773117316687,0.03,69879.0,69878.0,0.00144]
[1773117317699,0.03,69879.0,69874.0,0.07155735]
[1773117317902,0.03,69885.0,69875.0,0.00144]
[1773117318331,0.03,69885.0,69876.0,0.00144]
[1773117318862,0.03,69885.0,69877.0,0.00144]
[1773117319242,0.03,69885.0,69874.0,0.07155735]
[1773117319454,0.03,69885.0,69878.0,0.00144]
[1773117319659,0.03,69885.0,69862.0,0.23702748]
[1773117319660,0.03,69882.0,69862.0,0.23702748]
[1773117319859,0.03,69876.0,69871.0,0.00144]
[1773117320078,0.03,69876.0,69868.0,0.07320317]
[1773117320469,0.03,69876.0,69868.0,0.07176317]
[1773117320641,0.03,69876.0,69868.0,0.07320317]
[1773117320842,0.03,69875.0,69868.0,0.07320317]
[1773117321960,0.03,69874.0,69868.0,0.07320317]
[1773117323087,0.03,69876.0,69868.0,0.07320317]
[1773117323284,0.10155546,69876.0,69868.0,0.07320317]
[1773117323554,0.10155546,69876.0,69869.0,0.02520469]
[1773117324634,0.10155546,69876.0,69869.0,0.09676643]
[1773117325223,0.03,69874.0,69868.0,0.07176344]
[1773117325534,0.03,69874.0,69869.0,0.00144]
[1773117326290,0.03,69875.0,69869.0,0.00144]
[1773117326535,0.10155636,69875.0,69869.0,0.00144]
[1773117328876,0.10155636,69875.0,69869.0,0.07300238]
[1773117329335,0.10155636,69875.0,69869.0,0.00144]
[1773117329565,0.03,69873.0,69869.0,0.00144]
[1773117329787,0.05341248,69871.0,69869.0,0.00144]
[1773117330183,0.03,69871.0,69869.0,0.00144]
[1773117330400,0.03428111,69876.0,69869.0,0.00144]
[1773117330911,0.10155648,69875.0,69869.0,0.00144]
[1773117331058,0.10155648,69875.0,69869.0,0.00164]
[1773117332315,0.10154182,69890.0,69872.0,0.18172679]
[1773117332539,0.10154182,69890.0,69873.0,0.02520469]
[1773117332540,0.02341248,69889.0,69873.0,0.02520469]
[1773117332755,0.05341248,69888.0,69873.0,0.02520469]
[1773117334398,0.03,69886.0,69874.0,0.07155737]
[1773117335052,0.03,69882.0,69872.0,0.00144]
[1773117335324,0.03,69878.0,69871.0,0.00144]
[1773117336286,0.03,69876.0,69869.0,0.0002]
[1773117336410,0.03,69876.0,69869.0,0.00164]
[1773117337296,0.03,69876.0,69869.0,0.07320169]
[1773117337503,0.10155567,69876.0,69869.0,0.07320169]
[1773117338009,0.10155567,69876.0,69869.0,0.00164]
[1773117338434,0.10155567,69876.0,69869.0,0.07320236]
[1773117339513,0.10155567,69876.0,69852.0,0.07157974]
[1773117339514,0.18657591,69872.0,69852.0,0.07157974]
[1773117339727,0.03,69868.0,69857.0,0.00144]
[1773117339949,0.03,69868.0,69858.0,0.00144]
[1773117340573,0.03,69868.0,69862.0,0.0002]
[1773117341622,0.0711342,69868.0,69856.0,0.0002]
[1773117341826,0.03,69866.0,69859.0,0.00144]
[1773117342032,0.03,69866.0,69860.0,0.00144]
[1773117342446,0.03,69866.0,69856.0,0.07177568]
[1773117342658,0.0711342,69868.0,69860.0,0.00144]
[1773117342870,0.03,69867.0,69860.0,0.00144]
[1773117343456,0.07156556,69866.0,69860.0,0.00144]
[1773117343597,0.04156556,69866.0,69860.0,0.00144]
[1773117344235,6.502e-05,69872.0,69860.0,0.00144]
[1773117344236,6.502e-05,69872.0,69860.0,0.07301127]
[1773117344237,0.07162521,69872.0,69860.0,0.07301127]
[1773117344452,0.0001291,69879.0,69861.0,0.02447499]
[1773117344453,0.07155638,69875.0,69861.0,0.02447499]
[1773117344654,0.07155327,69878.0,69864.0,0.19233424]
[1773117344852,0.07155327,69878.0,69867.0,0.02447499]
[1773117345056,0.07155327,69878.0,69868.0,0.02591499]
[1773117345679,0.10155503,69877.0,69869.0,0.09603748]
[1773117345902,0.10155503,69877.0,69869.0,0.09587963]
[1773117347375,0.07168141,69879.0,69869.0,0.09607963]
[1773117347599,0.03,69878.0,69869.0,0.30109168]
[1773117347833,0.07176753,69884.0,69874.0,0.02447499]
[1773117348071,0.07176753,69884.0,69876.0,0.02447499]
[1773117348532,0.03,69883.0,69876.0,0.02447499]
[1773117349146,0.03,69883.0,69875.0,0.00144]
[1773117350991,0.10176717,69884.0,69876.0,0.07155532]
[1773117351399,0.03022001,69884.0,69876.0,0.07155532]
[1773117351613,0.07154619,69885.0,69876.0,0.07155532]
[1773117351834,0.07176528,69886.0,69878.0,0.02447499]
[1773117352049,0.03,69885.0,69878.0,0.02447499]
[1773117352700,0.0002403,69892.0,69882.0,0.19233424]
[1773117352923,0.03,69891.0,69886.0,0.02447499]
[1773117353764,0.03,69891.0,69883.0,0.00144]
[1773117353935,0.03,69891.0,69883.0,0.07298786]
[1773117354198,0.07177931,69892.0,69883.0,0.09921298]
[1773117354199,0.03,69890.0,69883.0,0.09921298]
[1773117357064,0.0302403,69892.0,69883.0,0.07298786]
[1773117357284,0.07198683,69905.0,69884.0,0.02622512]
[1773117357285,0.07174708,69904.0,69884.0,0.02622512]
[1773117357492,0.00046031,69905.0,69893.0,0.02622512]
[1773117357707,0.00046031,69905.0,69895.0,0.19540558]
[1773117357895,0.00046031,69905.0,69897.0,0.19540558]
[1773117358107,0.07151896,69912.0,69901.0,0.19540558]
[1773117358315,0.03022001,69911.0,69903.0,0.02622512]
[1773117358522,0.03022001,69911.0,69904.0,0.02766512]
[1773117358730,0.0002403,69919.0,69906.0,0.02622512]
[1773117358731,0.07151234,69918.0,69906.0,0.02622512]
[1773117358962,0.07151234,69918.0,69908.0,0.07152257]
[1773117359160,0.03,69917.0,69908.0,0.07152257]
[1773117361241,0.10151413,69917.0,69906.0,0.09774921]
[1773117362091,0.00022001,69912.0,69906.0,0.09774921]
[1773117363109,0.03,69917.0,69908.0,0.02622512]
[1773117363291,0.03,69917.0,69909.0,0.07152154]
[1773117363530,0.03,69917.0,69910.0,0.00144]
[1773117363949,0.10151352,69917.0,69910.0,0.00144]
[1773117364821,0.03,69917.0,69910.0,0.00144]
[1773117365035,0.03,69916.0,69910.0,0.00144]
[1773117365475,0.03,69916.0,69910.0,0.07295997]
[1773117366151,0.0715079,69923.0,69910.0,0.07295997]
[1773117366152,0.07149917,69931.0,69911.0,0.18844195]
[1773117366384,0.07422583,69944.0,69921.0,0.22939821]
[1773117366385,0.0714921,69938.0,69921.0,0.22939821]
[1773117366615,0.00274,69944.0,69926.0,0.02622512]
[1773117366825,0.00274,69944.0,69922.0,0.00144]
[1773117366826,0.00274,69944.0,69931.0,0.18844195]
[1773117367047,0.00274,69944.0,69920.0,0.45879642]
[1773117367048,0.03,69943.0,69934.0,0.02622512]
[1773117367263,0.03,69943.0,69935.0,0.00144]
[1773117367468,0.10148725,69943.0,69935.0,0.09915958]
[1773117367675,0.10186622,69943.0,69935.0,0.09915988]
[1773117367860,0.10186622,69943.0,69935.0,0.00144]
[1773117368079,0.10186622,69943.0,69936.0,0.00144]
[1773117368297,0.10186617,69943.0,69936.0,0.00144]
[1773117368510,0.03,69942.0,69936.0,0.00144]
[1773117369366,0.03,69942.0,69932.0,0.18844195]
[1773117369367,0.03,69940.0,69937.0,0.00144]
[1773117370017,0.03,69940.0,69938.0,0.00144]
[1773117370238,0.03,69940.0,69938.0,0.00129362]
[1773117370448,0.03,69940.0,69932.0,0.07149776]
[1773117370645,0.03,69940.0,69933.0,0.00144]
[1773117371431,0.03,69938.0,69933.0,0.00144]
[1773117371834,0.03,69938.0,69934.0,0.00144]
[1773117372414,0.03,69938.0,69935.0,0.02421924]
[1773117372619,0.03,69938.0,69934.0,0.00144]
[1773117373037,0.07148882,69941.0,69935.0,0.02421924]
[1773117374051,0.07148882,69941.0,69936.0,0.02421924]
[1773117374052,0.03,69941.0,69936.0,0.02421924]
[1773117374245,0.00037897,69943.0,69936.0,0.02421924]
[1773117374472,0.07196366,69947.0,69935.0,0.07149491]
[1773117374473,0.00048,69947.0,69938.0,0.02421924]
[1773117374678,0.07148175,69948.0,69940.0,0.02421924]
[1773117374848,0.07170999,69950.0,69941.0,0.02565924]
[1773117375052,0.03,69949.0,69941.0,0.02565924]
[1773117376041,0.03,69947.0,69941.0,0.02565924]
[1773117377201,0.00022001,69945.0,69941.0,0.02565924]
[1773117377402,0.00022001,69945.0,69941.0,0.07292848]
[1773117377583,0.07147896,69951.0,69941.0,0.07292848]
[1773117377584,0.07147186,69958.0,69943.0,0.02421924]
[1773117377785,0.00015,69972.0,69941.0,0.07292848]
[1773117377786,0.00015,69972.0,69949.0,0.02421924]
[1773117377787,0.07145832,69971.0,69949.0,0.02421924]
[1773117378012,0.07146226,69967.0,69951.0,0.0714786]
[1773117378216,0.02377791,69966.0,69951.0,0.0714786]
[1773117378416,0.03,69965.0,69952.0,0.02421924]
[1773117379574,0.03,69964.0,69952.0,0.02421924]
[1773117379797,0.02377791,69970.0,69951.0,0.0714786]
[1773117379798,0.07144773,69982.0,69957.0,0.18844195]
[1773117380027,0.02377791,69981.0,69961.0,0.02421924]
[1773117380248,0.07144898,69980.0,69963.0,0.02421924]
[1773117380693,0.21287382,69975.0,69964.0,0.00144]
[1773117380895,0.21287382,69975.0,69951.0,0.0714786]
[1773117380896,0.03,69973.0,69965.0,0.00144]
[1773117381102,0.03,69973.0,69960.0,0.02421924]
[1773117381309,0.03,69973.0,69961.0,0.02565924]
[1773117381310,0.03011353,69973.0,69961.0,0.02565924]
[1773117381907,0.03,69972.0,69961.0,0.02565924]
[1773117382288,0.03,69970.0,69963.0,0.02421924]
[1773117382818,0.18287382,69980.0,69964.0,0.00144]
[1773117383019,0.20665173,69979.0,69964.0,0.00155353]
[1773117383173,0.03,69977.0,69964.0,0.00155353]
[1773117383374,0.03,69975.0,69964.0,0.00155353]
[1773117383715,0.23665173,69975.0,69965.0,0.00144]
[1773117383918,0.20665173,69974.0,69966.0,0.00144]
[1773117384215,0.03,69973.0,69966.0,0.00144]
[1773117384449,0.03,69973.0,69964.0,0.00011353]
[1773117384657,0.10145673,69973.0,69965.0,0.00144]
[1773117385303,0.03,69972.0,69965.0,0.00144]
[1773117386021,0.03,69972.0,69965.0,0.02565924]
[1773117386218,0.03,69971.0,69965.0,0.02565924]
[1773117386647,0.03,69971.0,69966.0,0.07146328]
[1773117386856,0.03,69971.0,69967.0,0.02421924]
[1773117387414,0.03,69970.0,69967.0,0.02421924]
[1773117387594,0.03,69970.0,69963.0,0.07146555]
[1773117387912,0.03011347,69970.0,69968.0,0.00144]
[1773117388116,0.00022001,69980.0,69968.0,0.02565924]
[1773117388328,0.00022001,69980.0,69970.0,0.02421924]
[1773117388329,0.03,69979.0,69970.0,0.02421924]
[1773117388655,0.10145045,69979.0,69972.0,0.02421924]
[1773117388859,0.03,69979.0,69972.0,0.02421924]
[1773117389111,0.00022001,69980.0,69972.0,0.02421924]
[1773117389319,0.00022001,69980.0,69971.0,0.07145817]
[1773117389320,0.0003236,69992.0,69975.0,0.18844195]
[1773117389538,0.0003236,69992.0,69979.0,0.18844195]
[1773117389739,0.0003236,69992.0,69976.0,0.00144]
[1773117389740,0.0003236,69992.0,69981.0,0.02421924]
[1773117389949,0.03,69989.0,69975.0,0.02459821]
[1773117390143,0.23665173,69989.0,69976.0,0.00144]
[1773117390567,0.23665173,69989.0,69975.0,0.02459821]
[1773117390788,0.03,69987.0,69977.0,0.00144]
[1773117391534,0.03,69987.0,69976.0,0.07145306]
[1773117391770,0.00022001,69982.0,69978.0,0.02565924]
[1773117391986,0.00022001,69982.0,69970.0,0.25990018]
[1773117391987,0.00022001,69982.0,69979.0,0.00144]
[1773117392649,0.00022001,69982.0,69971.0,0.09567741]
[1773117392851,0.03,69980.0,69972.0,0.07289626]
[1773117393808,0.03,69980.0,69973.0,0.00144]
[1773117394012,0.18287382,69984.0,69973.0,0.00144]
[1773117394013,0.07142147,70007.0,69988.0,0.02421924]
[1773117394226,0.07141958,70009.0,69976.0,0.14670969]
[1773117394227,0.10142463,70004.0,69990.0,0.02421924]
[1773117394451,0.10142463,70004.0,69985.0,0.19540291]
[1773117394452,0.03,70004.0,69991.0,0.02565924]
[1773117394696,0.07142374,70005.0,69991.0,0.02565924]
[1773117394697,0.03,70002.0,69991.0,0.02565924]
[1773117394945,0.10142668,70002.0,69992.0,0.07143673]
[1773117395107,0.03,70002.0,69992.0,0.07143673]
[1773117395283,0.03,70002.0,69993.0,0.02421924]
[1773117395510,0.09190341,70010.0,69993.0,0.19540291]
[1773117395511,0.07174253,70010.0,69993.0,0.19540291]
[1773117395682,0.01960344,70016.0,69992.0,0.07143673]
[1773117395683,0.00562,70040.0,70000.0,0.22939821]
[1773117395882,0.00562,70040.0,70011.0,0.02773172]
[1773117395883,0.19729002,70039.0,70011.0,0.02773172]
[1773117396089,0.19729002,70037.0,70011.0,0.00037957]
[1773117396288,0.07283063,70038.0,70006.0,0.00144]
[1773117396289,0.19729002,70029.0,70006.0,0.00144]
[1773117396519,0.19729002,70027.0,70006.0,0.00182027]
[1773117396729,0.03,70024.0,70006.0,0.00182027]
[1773117396918,0.07139063,70038.0,70008.0,0.02773172]
[1773117396919,0.03,70020.0,70008.0,0.02773172]
[1773117397325,0.03,70020.0,70007.0,0.07142142]
[1773117397326,0.00144,70036.0,70013.0,0.19540291]
[1773117397569,0.19729002,70039.0,70016.0,0.02773172]
[1773117397570,0.00144,70037.0,70016.0,0.02773172]
[1773117397736,0.00144,70037.0,70018.0,0.19540291]
[1773117397950,0.00144,70037.0,70014.0,0.00144]
[1773117397951,0.00144,70037.0,70019.0,0.02773172]
[1773117398113,0.00144,70037.0,70021.0,0.02769929]
[1773117398337,0.00144,70037.0,70015.0,0.00144]
[1773117398338,0.03,70033.0,70015.0,0.00144]
[1773117398696,0.00144,70037.0,70007.0,0.07142142]
[1773117398697,0.03,70029.0,70014.0,0.02769929]
[1773117398902,0.03,70027.0,70015.0,0.07141326]
[1773117399119,0.03,70027.0,70016.0,0.02769929]
[1773117399602,0.03,70027.0,70013.0,0.07285456]
[1773117399603,0.00022001,70018.0,70009.0,0.02769929]
[1773117399801,0.03,70024.0,70013.0,0.02769929]
[1773117400408,0.03,70020.0,70008.0,0.07141836]
[1773117400653,0.22729002,70020.0,70008.0,0.07285836]
[1773117400984,0.29869831,70020.0,70008.0,0.07285836]
[1773117401185,0.29869831,70020.0,70006.0,0.09990177]
[1773117401390,0.03,70016.0,70004.0,0.07142449]
[1773117401589,0.07140829,70020.0,70004.0,0.07142449]
[1773117401590,0.22729002,70014.0,70004.0,0.07180521]
[1773117402362,0.22729002,70014.0,70004.0,0.00038072]
[1773117402569,0.22729002,70014.0,70000.0,0.07165835]
[1773117402844,0.22766979,70014.0,70000.0,0.07165835]
[1773117403060,0.22729002,70012.0,70000.0,0.07165835]
[1773117404293,0.22729002,70012.0,70000.0,0.10011417]
[1773117404650,0.03,70012.0,70000.0,0.10011417]
[1773117404867,0.03,70010.0,70000.0,0.00023]
[1773117405067,0.03,70010.0,69994.0,0.02845582]
[1773117405068,0.22729002,70006.0,69994.0,0.02845582]
[1773117405265,0.22729002,70006.0,69986.0,0.07144286]
[1773117405672,0.22729002,70006.0,69987.0,0.02845582]
[1773117407074,0.07142346,70005.0,69988.0,0.07144081]
[1773117407284,0.07142346,70005.0,69989.0,0.02843394]
[1773117407285,0.03,70004.0,69989.0,0.02843394]
[1773117407484,0.26871348,70005.0,69988.0,0.07144081]
[1773117407485,0.03,69999.0,69988.0,0.07144081]
[1773117407732,0.22729002,69999.0,69988.0,0.07144081]
[1773117408137,0.03,69999.0,69988.0,0.07144081]
[1773117408341,0.03,69999.0,69988.0,0.10000907]
[1773117408836,0.03,69999.0,69989.0,0.02856826]
[1773117408989,0.07142346,70007.0,69989.0,0.02856826]
[1773117408990,0.00144,70004.0,69992.0,0.18400906]
[1773117409194,0.00144,70004.0,69996.0,0.02856826]
[1773117409624,0.07141551,70013.0,69996.0,0.02856826]
[1773117409625,0.07163697,70012.0,69996.0,0.02856826]
[1773117409823,0.00144,70007.0,69996.0,0.02856826]
[1773117410387,0.03,70011.0,69997.0,0.03000719]
[1773117410675,0.07163697,70012.0,69997.0,0.03000719]
[1773117410676,0.00144,70012.0,69997.0,0.03000719]
[1773117410912,0.00562,70040.0,69997.0,0.03000719]
[1773117411141,0.00562,70040.0,70001.0,0.11133678]
[1773117411142,0.03,70036.0,70001.0,0.11133678]
[1773117411281,0.03,70036.0,70006.0,0.18400906]
[1773117411282,0.18813666,70029.0,70006.0,0.18400906]
[1773117411486,0.18813666,70029.0,70004.0,0.07142449]
[1773117411487,0.07139491,70033.0,70007.0,0.00144]
[1773117411488,0.03,70022.0,70007.0,0.00144]
[1773117411690,0.03,70022.0,70007.0,0.02856719]
[1773117411896,0.03,70022.0,70009.0,0.02856719]
[1773117412664,0.18957666,70028.0,70009.0,0.02856719]
[1773117413391,0.18957666,70028.0,70011.0,0.02855032]
[1773117413586,0.03,70027.0,70011.0,0.02855032]
[1773117413838,0.21957666,70027.0,70011.0,0.02855032]
[1773117414211,0.21957666,70027.0,70016.0,0.02931212]
[1773117414481,0.21813666,70027.0,70016.0,0.02931212]
[1773117414862,0.21813666,70027.0,70015.0,0.08]
[1773117415077,0.21813666,70027.0,69988.0,0.17148]
[1773117415078,0.21813666,70027.0,70012.0,0.00144]
[1773117415249,0.21813666,70027.0,70013.0,0.0714153]
[1773117415461,0.21813666,70027.0,70014.0,0.02931212]
[1773117415667,0.00022001,70020.0,70014.0,0.02931212]
[1773117416905,0.03,70018.0,70009.0,0.07141865]
[1773117417081,0.03,70014.0,70007.0,0.0714204]
[1773117418967,0.03,70013.0,70007.0,0.0714204]
[1773117419176,0.00022001,70020.0,70008.0,0.02721489]
[1773117419373,0.00144,70025.0,70008.0,0.02721489]
[1773117419598,0.00144,70026.0,70013.0,0.02721489]
[1773117419809,0.00144,70026.0,70015.0,0.02721489]
[1773117420012,0.00144,70029.0,70015.0,0.02721489]
[1773117420212,0.03,70027.0,70015.0,0.02865489]
[1773117420413,0.00144,70029.0,70015.0,0.02721489]
[1773117420414,0.03,70025.0,70015.0,0.02721489]
[1773117421419,0.25953279,70032.0,70015.0,0.02721489]
[1773117421420,0.03,70024.0,70015.0,0.02721489]
[1773117421598,0.03,70024.0,70012.0,0.07141579]
[1773117421599,0.101405,70024.0,70012.0,0.07141579]
[1773117421796,0.101405,70024.0,70007.0,0.02721489]
[1773117421797,0.03,70018.0,70008.0,0.0714204]
[1773117422011,0.03,70016.0,70009.0,0.07141913]
[1773117422210,0.03,70016.0,70010.0,0.02721489]
[1773117422423,0.07140409,70026.0,70010.0,0.02721489]
[1773117422424,0.00144,70026.0,70010.0,0.02721489]
[1773117423244,0.00144,70026.0,70011.0,0.00144]
[1773117423445,0.00144,70026.0,70012.0,0.02721489]
[1773117423685,0.00144,70026.0,70013.0,0.0714153]
[1773117423859,0.22880388,70026.0,70013.0,0.0714153]
[1773117424094,0.00022001,70024.0,70013.0,0.0728553]
[1773117424293,0.00022001,70024.0,70014.0,0.02721489]
[1773117425038,0.00022001,70024.0,70013.0,0.0728553]
[1773117425287,0.00022001,70024.0,70014.0,0.02721489]
[1773117425643,0.00022001,70024.0,70015.0,0.07141326]
[1773117426069,0.03022001,70024.0,70015.0,0.07141326]
[1773117426498,0.03,70022.0,70014.0,0.07141326]
[1773117426910,0.07139954,70029.0,70014.0,0.07141326]
[1773117426911,0.19736388,70031.0,70015.0,0.02721489]
[1773117427124,0.06361434,70034.0,70015.0,0.19351754]
[1773117427321,0.06361434,70034.0,70016.0,0.02721489]